Cogmind - Beta 17 *** ADVENTURER MODE // 2026.07.26 @ 09:56:19 Player: smokingfox Result: Destroyed by Y-54 Guardian with Gatling Laser Performance ------------- Evolutions (0) 0 Regions Visited (3) 600 Robots Destroyed (41) 205 Value Destroyed (881) 881 Prototype IDs (25) 500 Alien Tech Used (0) 0 Bonus (0) 0 TOTAL SCORE: 2186 Bonus ------- None Cogmind --------- Core Integrity 0/250 Matter 278/300 Energy 100/100 System Corruption 2% Temperature Cool (12) Movement Treading (160) Location -7/Recycling Parts ------- > --- POWER (1) -------- Fusion Compressor (fused) > --- PROPULSION (2) --- Heavy Treads (fused) > --- UTILITY (2) ------ Large Storage Unit Self-contained Transmogrifier > --- WEAPON (2) ------- Heavy Dispersion Rifle (fused) Battle Cannon > --- INVENTORY (15) --- Improved Ion Engine Light Treads Light Treads Light Treads Light Treads Medium Matter Pod (100) Medium Matter Pod (100) Medium Matter Pod (100) Improved Light Armor Plating Makeshift Light Armor Plating Heavy EM Pulse Gun Heavy EM Pulse Gun Battle Rifle Grenade Launcher Peak State ------------ > --- POWER ------------ Makeshift Power Source > --- PROPULSION ------- Heavy Treads > --- UTILITY ---------- Large Storage Unit Self-contained Transmogrifier > --- WEAPON ----------- Advanced Variable Charge Gun Advanced Variable Charge Gun > --- INVENTORY -------- Improved Ion Engine Light Treads Light Treads Light Treads Light Treads Medium Matter Pod Medium Matter Pod Medium Matter Pod Heavy EM Pulse Gun Heavy EM Pulse Gun Battle Rifle Battle Rifle Battle Cannon Grenade Launcher [Rating: 44] Favorites ----------- Power Makeshift Power Source Engine Makeshift Power Source Power Core Fusion Compressor Propulsion Light Treads Treads Light Treads Utility Large Storage Unit Device Self-contained Transmogrifier Storage Large Storage Unit Weapon Medium Laser Energy Gun Medium Laser Energy Cannon Proton Burst Cannon Ballistic Gun Hypervelocity Gauss Rifle Ballistic Cannon Battle Cannon Launcher Grenade Launcher Build | -11 -10 -10 -7 ------- Run | Yrd Mat Sub Rec Slots Evolved . | . . . . Power . | . . . . Propulsion . | . . . . Utility . | . . . . Weapon . | . . . . Parts Attached 19 | 6 7 6 . Power 4 | 1 1 2 . Engine 4 | 1 1 2 . Core . | . . . . Reactor . | . . . . Propulsion 2 | . 2 . . Treads 2 | . 2 . . Leg . | . . . . Wheel . | . . . . Hover . | . . . . Flight . | . . . . Utility 7 | 2 4 1 . Device 4 | 1 2 1 . Storage 3 | 1 2 . . Processor . | . . . . Hackware . | . . . . Protection . | . . . . Artifact . | . . . . Weapon 6 | 3 . 3 . Energy Gun 3 | 3 . . . Energy Cannon 1 | . . 1 . Ballistic Gun . | . . . . Ballistic Cannon 1 | . . 1 . Launcher 1 | . . 1 . Special Weapon . | . . . . Impact Weapon . | . . . . Slashing Weapon . | . . . . Piercing Weapon . | . . . . Special Melee Weapon . | . . . . Unidentified Prototypes 1 | . . 1 . Parts Lost 2 | . . 1 1 Power 1 | . . 1 . Propulsion . | . . . . Utility . | . . . . Weapon 1 | . . . 1 Highest Loss Streak 1 | . . 1 1 To Critical Strikes . | . . . . Average Backups 13 | 4 10 14 13 Power 1 | 1 2 1 1 Propulsion 3 | 1 1 4 4 Utility 3 | . 2 4 4 Weapon 4 | . 2 4 4 Tool/Special . | . . . . Unused Backups 17 | . 2 2 13 Power 3 | . 2 . 1 Propulsion 4 | . . . 4 Utility 6 | . . 1 5 Weapon 4 | . . 1 3 Tool/Special . | . . . . Average Slot Usage (%) 96 | . 99 96 85 Engine 14 | . 13 14 7 Treads 25 | . 27 25 14 Device 13 | . 13 13 14 Storage 13 | . 14 13 14 Energy Gun 24 | . 27 24 16 Energy Cannon 1 | . . 2 . Peak Build Rating 44 | 7 11 44 44 Average Rating 29 | 3 9 36 40 On Entrance 15 | . 7 10 43 Avg Prop Armor Cover (%) . | . . . . Naked Turns . | . . . . Heaviest Build 47 | 13 32 47 42 Greatest Support 70 | 3 40 70 70 Greatest Overweight (x) 10 | 4 10 1 . Average Overweight (x) . | 1 . . . Largest Inventory Capacity 15 | 8 15 15 15 Average Capacity 14 | 6 12 15 15 Most Carried 15 | 6 15 15 14 Average Carried 13 | 4 10 14 13 Final Capacity 15 | 8 15 15 15 Final Carried 15 | 5 15 14 14 Transmogrified Parts 49 | . . 46 3 Integrity Recovered 686 | . . 648 38 Class Distribution -------------------- 89% | Mutant 10% | Derelict-Mutant Dominant Class ---------------- Mutant | -10/Materials Mutant | -10/Subcaves Mutant | -7/Recycling Resources | -11 -10 -10 -7 ----------- Run | Yrd Mat Sub Rec Matter Collected 1071 | 260 385 218 208 Remotely . | . . . . Salvage Created 1214 | 162 426 520 106 Parts 85 | 12 29 41 3 Haulers Intercepted 2 | . 2 . . Recyclers Shooed 2 | 1 1 . . Parts Field Recycled . | . . . . Retrieved Matter . | . . . . Parts Self-Destructed 13 | . . 13 . Prevented . | . . . . Parts Restored . | . . . . Kills | -11 -10 -10 -7 ------- Run | Yrd Mat Sub Rec Combat Hostiles Destroyed 27 | . 8 16 3 Guns 20 | . 8 11 1 Cannons 6 | . . 4 2 AOE 1 | . . 1 . Classes Destroyed 13 | 3 5 2 3 Worker 2 | 2 . . . Builder 1 | . 1 . . Tunneler 3 | 3 . . . Hauler 2 | . 2 . . Recycler 2 | 1 1 . . Turret 2 | . . 2 . Watcher 2 | . 2 . . Swarmer 12 | . 5 7 . Grunt 3 | . 3 . . Protector 1 | . . . 1 Sentry 1 | . . . 1 Programmer 1 | . . . 1 Subdweller 9 | . . 9 . Best Kill Streak 5 | 4 3 5 1 Combat Bots Only 4 | . 3 4 1 Max Kills in Single Turn 2 | 1 2 1 1 Gunslinging 1 | . 1 . . Exploded 1 | . . 1 . Melee . | . . . . Uniques/NPCs Destroyed . | . . . . Combat | -11 -10 -10 -7 -------- Run | Yrd Mat Sub Rec Hostile Shots Fired 188 | . 36 96 56 Missed 54 | . 8 31 15 Hits 134 | . 28 65 41 Projectile 134 | . 28 65 41 Critical Strikes 3 | . . 1 2 Damage Taken 1259 | . 243 741 275 Core 256 | . 55 148 53 Absorbed by Shields . | . . . . Ignored by Resistances 369 | . 77 206 86 Core Remaining (%) 100 | 100 . . . Volleys Fired 123 | 12 44 57 10 Largest 2 | 2 2 2 2 Hottest 184 | 100 100 184 184 Shots Fired 238 | 24 84 109 21 Gun 207 | 24 84 88 11 Cannon 27 | . . 17 10 Launcher 4 | . . 4 . Special . | . . . . Kinetic 11 | . . 1 10 Thermal 167 | 15 84 58 10 Explosive 4 | . . 4 . Electromagnetic 56 | 9 . 46 1 Robot Hit Streak 41 | 9 18 41 22 Robot Miss Streak 2 | 2 2 2 1 Penetration Max . | . . . . Secondary Targets 4 | . 4 . . Max Gunslinging Chain 1 | . 1 . . Shots Hit Robots 170 | 18 66 66 20 Core Hits 72 | 7 20 39 6 Critical Kills . | . . . . Critical Parts Destroyed 2 | . . . 2 Critical Strikes 13 | 3 6 1 3 Burn 9 | 3 6 . . Destroy 3 | . . 1 2 Blast 1 | . . . 1 Melee Attacks . | . . . . Impact . | . . . . Slashing . | . . . . Piercing . | . . . . Sneak Attacks . | . . . . Combat Hostiles . | . . . . Follow-up Attacks . | . . . . Damage Inflicted 3287 | 223 828 1731 505 Guns 2618 | 223 828 1273 294 Cannons 507 | . . 296 211 Explosions 162 | . . 162 . Melee . | . . . . Ramming . | . . . . Kinetic 211 | . . . 211 Thermal 2432 | 136 828 1200 268 Explosive 111 | . . 111 . Electromagnetic 533 | 87 . 420 26 Impact . | . . . . Slashing . | . . . . Piercing . | . . . . Highest Corruption 2 | . 1 1 2 Average Corruption 1 | . 1 1 1 Corruption Purged . | . . . . Corruption Blocked . | . . . . Effects 45 | . 12 29 4 Message Errors 14 | . 4 9 1 Matter Fused 9 | . 2 5 2 Heat Flow Errors 3 | . 1 2 . Energy Discharges 6 | . 2 4 . Data Loss (minor) 10 | . 2 8 . Misfires 2 | . 1 . 1 Weapon Failures 1 | . . 1 . Overload Shots . | . . . . Overflow Damage 91 | . . 43 48 Projectiles 91 | . . 43 48 Explosions . | . . . . Melee . | . . . . Knockbacks 1 | . . . 1 Impact . | . . . . Kinetic 1 | . . . 1 Secondary . | . . . . Self-Inflicted Damage 29 | . . 29 . Shots 1 | . . 1 . Rammed . | . . . . Targets Rammed . | . . . . Kicked . | . . . . Crushed . | . . . . Highest Temperature 383 | 140 357 282 383 Average Temperature 98 | 63 105 78 143 Received Heat Transfer 363 | . 129 156 78 Effects 5 | . 3 2 . Interference 4 | . 2 2 . Short Circuit 1 | . 1 . . Siege Activations . | . . . . Martial Activations . | . . . . Shielding Activations . | . . . . Robots Disrupted . | . . . . Combat Hostiles . | . . . . Robots Corrupted . | . . . . Combat Hostiles . | . . . . Parts Fried 3 | . . 3 . Impact Corruptions . | . . . . Robots Melted . | . . . . Combat Hostiles . | . . . . Parts Melted 8 | 2 5 1 . Heat Transferred 5353 | 629 2886 1543 295 Parts Sabotaged . | . . . . Parts Stolen . | . . . . Parts Stripped . | . . . . Power Chain Reactions 1 | . . 1 . Alert | -11 -10 -10 -7 ------- Run | Yrd Mat Sub Rec Maximum Alert Level . | . . . . Low Security (%) 100 | 100 100 . 100 Level 1 . | . . . . Level 2 . | . . . . Level 3 . | . . . . Level 4 . | . . . . Level 5 . | . . . . High Security . | . . . . Max Security . | . . . . Peak Influence 70 | 10 70 . 21 Initial . | . . . . Average 5 | 2 6 . 3 Influence Increases 784 | 30 248 460 46 Destroy 0b10 Robot/C 380 | . 160 180 40 Destroy 0b10 Robot/NC 65 | 30 30 . 5 Destroy Leader 48 | . 38 10 . Successful Hack 20 | . 20 . . Destroy Structure 1 | . . . 1 Lose Combat Pursuer 270 | . . 270 . Influence Decreases 784 | 30 248 460 46 Time Decay 784 | 30 248 460 46 Squads Dispatched 2 | . 2 . . Investigation 2 | . 2 . . Extermination . | . . . . Reinforcement . | . . . . Assault . | . . . . Garrison . | . . . . Intercept . | . . . . Searches Triggered . | . . . . Construction Impeded . | . . . . Haulers Reinforced . | . . . . Active Scanning Responses . | . . . . Cargo Convoy Interrupts . | . . . . Stealth | -11 -10 -10 -7 --------- Run | Yrd Mat Sub Rec Distress Signals . | . . . . Communications Jammed . | . . . . Distress Signals . | . . . . Times Spotted 49 | . 15 29 5 Peak Tracking Total 6 | . 3 6 2 Tactical Retreats 4 | . . 4 . Traps | -11 -10 -10 -7 ------- Run | Yrd Mat Sub Rec Traps Triggered 6 | . 5 1 . Indirectly . | . . . . Trap Hack Attempts . | . . . . Triggered . | . . . . Disarmed . | . . . . Reprogrammed . | . . . . Reused . | . . . . Traps Extracted . | . . . . Installed . | . . . . Triggered . | . . . . Machines | -11 -10 -10 -7 ---------- Run | Yrd Mat Sub Rec Machines Disabled 3 | . . 3 . Max in Single Turn 1 | . . 1 . Machines Repaired . | . . . . Machines Dismantled . | . . . . Machines Sabotaged . | . . . . Overloaded Fab Kills . | . . . . Hacking | -11 -10 -10 -7 --------- Run | Yrd Mat Sub Rec Machines Accessed 7 | . 6 1 . Terminals 6 | . 6 . . Fabricators . | . . . . Repair Stations . | . . . . Recycling Units . | . . . . Scanalyzers . | . . . . Garrison Access . | . . . . Total Hacks 25 | . 16 9 . Successful 17 | . 8 9 . Failed 8 | . 8 . . Catastrophic . | . . . . Database Lockouts . | . . . . Manual . | . . . . Terminals 16 | . 16 . . Fabricators . | . . . . Repair Stations . | . . . . Recycling Units . | . . . . Scanalyzers . | . . . . Garrison Access . | . . . . Terminal Hacks 17 | . 8 9 . Record 11 | . 3 8 . Prototype ID Bank 3 | . 3 . . Branch Access Points 1 | . 1 . . Zone Layout 1 | . 1 . . Proto ID Catalog 1 | . . 1 . Fabricator Hacks . | . . . . Repair Station Hacks . | . . . . Recycling Unit Hacks . | . . . . Scanalyzer . | . . . . Garrison Access Hacks . | . . . . Unauthorized Hacks . | . . . . Terminals . | . . . . Fabricators . | . . . . Repair Stations . | . . . . Recycling Units . | . . . . Scanalyzers . | . . . . Garrison Access . | . . . . Data Cores Recovered . | . . . . Used . | . . . . Hacking Detections 5 | . 5 . . Full Trace Events 1 | . 1 . . Feedback Events 1 | . 1 . . Corruption 1 | . 1 . . Feedback Blocked . | . . . . Robot Schematics Acquired . | . . . . Robots Built . | . . . . Authchips . | . . . . Time . | . . . . Total Robot Build Rating . | . . . . Part Schematics Acquired . | . . . . Parts Built . | . . . . Authchips . | . . . . Time . | . . . . Total Part Build Rating . | . . . . Part Studies Acquired . | . . . . Parts Repaired . | . . . . Time . | . . . . Parts Recycled . | . . . . Recycled Matter . | . . . . Retrieved Matter . | . . . . Retrieved Components . | . . . . Parts Scanalyzed . | . . . . Part Schematics Acquired . | . . . . Parts Damaged . | . . . . Bothacking | -11 -10 -10 -7 ------------ Run | Yrd Mat Sub Rec Used RIF Installer . | . . . . Robots Hacked . | . . . . Non-combat . | . . . . Combat . | . . . . Robot Hacks Applied . | . . . . Relay Couplers Released . | . . . . Fabnet Peak Effective % . | . . . . Robots Rewired . | . . . . Allies Hacked . | . . . . Hacks Repelled . | . . . . Allies | -11 -10 -10 -7 -------- Run | Yrd Mat Sub Rec Total Allies . | . . . . Largest Group . | . . . . Highest-Rated Group . | . . . . Highest-Rated Ally . | . . . . Total Orders . | . . . . Ally Attacks . | . . . . Total Damage . | . . . . Kills . | . . . . Allies Corrupted . | . . . . Allies Melted . | . . . . Intel | -11 -10 -10 -7 ------- Run | Yrd Mat Sub Rec Active Infowar (turns) 928 | 36 892 . . Terrain 501 | 36 465 . . Structural 427 | . 427 . . Robot Analysis Total . | . . . . Derelict Logs Recovered 2 | . . 2 . Drone Launches . | . . . . Drone Recoveries . | . . . . Exploration | -11 -10 -10 -7 ------------- Run | Yrd Mat Sub Rec Turns Passed 6774 | 126 1485 4819 344 Spaces Moved 3582 | 56 767 2596 163 Core 57 | 56 1 . . Treads 3525 | . 766 2596 163 Legs . | . . . . Wheels . | . . . . Hover . | . . . . Flight . | . . . . Fastest Speed 50 | 50 160 152 160 Average Speed 163 | 137 161 164 160 Slowest Speed 550 | 250 550 250 165 Overloaded Moves . | . . . . Propulsion Burnouts . | . . . . Robots Hopped . | . . . . Potential Cave-ins . | . . . . Cave-ins Triggered . | . . . . Exploration Rate (%) 58 | 5 98 98 33 Regions Visited 3 Branch Regions 2 Pre-discovered Areas 1 | . . 1 . Known Exits Taken . | . . . . Unknown Exits Taken 3 | 1 1 1 . Scrap Searched 12 | . . 12 . Spaces Dug . | . . . . Terrain Destroyed 32 | . . 31 1 Melee . | . . . . Projectile 7 | . . 6 1 AOE 25 | . . 25 . Terrain Rammed . | . . . . Walls Destroyed . | . . . . Machines Disabled . | . . . . Actions | -11 -10 -10 -7 --------- Run | Yrd Mat Sub Rec Total 4263 | 80 932 3025 226 Wait 482 | . 83 349 50 Move 3579 | 55 766 2595 163 Hop . | . . . . Pick Up 34 | 7 18 8 1 Fast Attach 10 | 3 6 1 . Attach 10 | 2 4 3 1 Detach . | . . . . Swap 8 | 1 4 3 . Drop 16 | . 7 9 . Fire 123 | 12 44 57 10 Melee . | . . . . Ram . | . . . . Kick . | . . . . Crush . | . . . . Escape Stasis . | . . . . Rewire 1 | . . . 1 Trap . | . . . . Miscellaneous . | . . . . Route ------- -11/Scrapyard -10/Materials (discovered 6 exits: [*Mat x3] / *Min x2 / *Sub) -10/Subcaves (discovered 3 exits: [*Mat x2] / [*Rec]) -7/Recycling (discovered 1 exit: [*Fac]) History --------- Turn | Location | Event 9 | -11/Scrapyard | Discovered new exit (range 15) 127 | -11/Scrapyard | Entered Materials 318 | -10/Materials | Build established: Mutant 413 | -10/Materials | Discovered new exit (range 6) 453 | -10/Materials | Discovered new exit (range 16) 722 | -10/Materials | Identified exit to Mines 755 | -10/Materials | Discovered new exit (range 13) 1335 | -10/Materials | Discovered new exit (range 14) 1580 | -10/Materials | Discovered new exit (range 8) 1612 | -10/Materials | Entered Subcaves 1640 | -10/Subcaves | Discovered new exit (range 15) 1920 | -10/Subcaves | Learned 4 Materials zone layouts 2034 | -10/Subcaves | Visited 4L-MR0's lab 2049 | -10/Subcaves | Found Prototype Device 2050 | -10/Subcaves | Identified Sfc. Transmogrifier 2148 | -10/Subcaves | Found Powered Cannon 2151 | -10/Subcaves | Attached Powered Cannon, gained temporary slot: Power 2344 | -10/Subcaves | Shifting Twisted Machinery released Piercing Trap 2702 | -10/Subcaves | Core integrity fell below 50% 2864 | -10/Subcaves | Discovered new exit (range 14) 3252 | -10/Subcaves | Shifting Twisted Machinery released Spk. Treads 3256 | -10/Subcaves | Shifting Twisted Machinery released Mak. Light Armor Plating 4579 | -10/Subcaves | Learned location of Zion (-7) 4579 | -10/Subcaves | Met a Zionite searching for "candidates" 4908 | -10/Subcaves | Shifting Twisted Machinery released Shrapnel Trap 4911 | -10/Subcaves | Shifting Twisted Machinery released Mak. System Restoration Module 5080 | -10/Subcaves | Discovered new exit (range 9) 5642 | -10/Subcaves | Build established: Derelict-Mutant 5956 | -10/Subcaves | Core integrity fell below 20% 6022 | -10/Subcaves | Build established: Mutant 6296 | -10/Subcaves | Shifting Twisted Machinery released Humpback 6431 | -10/Subcaves | Entered Recycling 6432 | -7/Recycling | Met a Zionite searching for Scraptown 6763 | -7/Recycling | Discovered new exit (range 15) 6775 | -7/Recycling | Destroyed by Y-54 Guardian with Gatling Laser Last Messages --------------- L,B8G RDSZGETMPP8>EYQ PGQSHCEJ | R-06 Scavenger collects Remote Datajack. System corrupted: FCS attempts to trigger Battle Cannon. System corrupted: Battle Cannon misfires. I-36 Angel suffers critical hit (Destroy). Destroyed Imp. Deuterium Engine. I-36 Angel knocked back. I-36 Angel suffers critical hit (Destroy). Destroyed Remote Force Field. I-36 Angel destroyed. U-05 Engineer builds a Wall. Acquired 37 matter. R-06 Scavenger collects Com. Battery. Acquired 97 matter. Acquired 51 matter. Acquired 17 matter. Acquired 1 matter. EXIT=FOUND Y-54 Guardian springs to life. Map ----- +----------------------------------------------------+ | ?????????????????????????????? | | ?????????????????????????????? | | ?????????????????????????????? | | ?????????????????????????????? | | ?????????????????????????????? | | ?????????????????????????????? | | ?????????????????????????????? | | ?????????????????????????????? | | ?????????????????????????????? | | ?????????????????????????????? | | ?????????????????????????????? | | ?????????????????????????????? | | ????????????????????????###??? | | ???????????????????###### #### | | ???????????????????# # | | ???#####???????????# # | | ??## #???????##### # | | ??? < #???????# # # | | ???[ #???????# + # | | ??? #???????# # # | | ???# #???????## ## | | ??## #????????# ## # | | ??# ########## ##+######### | | ???#Y #???????? | | ???# #### ######### | | ???# @ #??# #!! ! | | ???# #??# #! ! ! | | ???# #??# ######## # ! | | ???# #?##+######## #! | | ???# #?# %+%+ ! | | ???# #?#% !# # | | ???# #?# / % # #! ! | | ???# #?# ! # # ! | | ???# ### # # ! | | ???# + / # ###+##### | | ?### ### ]# % | | ?# ""#] + | | ?#%% Y"# ! !# | | ?#%% ""# ! #####+##### | | ?### ### #?????????? | | ???# #?# #?????????? | | ???# #?# /! #?????????? | | ???# #?# %#?????????? | | ???# #?# % #?????????? | | ???# #?# % !#?????????? | | ???# #?#+#########?????????? | | ??? ?????????????????????? | | ??? ?????????????????????? | | ??? ????????????????????? | | ??? #????????????????????? | +----------------------------------------------------+ Best States ------------- Heat Dissipation 35 Energy Generation 25 Energy Capacity 800 Matter Stores 300 Matter Capacity 300 Sight Range 16 Terrain Scan Range 16 Terrain Scan Density 10 Resistance: KI 20 Resistance: TH 20 Resistance: EX 20 Resistance: EM 20 Resistance: I 20 Resistance: S 20 Resistance: P 20 Evasion (%) 50 Recoil Reduction 2 Offensive Hacking 10 Item Schematics ----------------- None Robot Schematics ------------------ None Fabricated ------------ Nothing Repaired ---------- Nothing Studied --------- None Alien Tech Used ----------------- None Achievements -------------- None Challenges ------------ None Game ------ Seed ThunderMachineFocus Manual? 0 Play Time 00:35:39 Cumulative 41.2 hours Start 2026.07.04 @ 00:14:40 End 2026.07.26 @ 09:56:19 Sessions 2 Manual Loads 0 Difficulty Adventurer Special Mode None Game No. 57 Rogue 7 Adventurer 50 Explorer 0 Win Type - Total 0 Types 0/0/0/0/0/0/0/0/0/0 Lore% 50 Gallery% 32 Achievement% 27 Wizard Run 0 Options --------- Layout 1 ASCII 0 Keyboard 0 Movement Mouse Keybinds 0 Fullscreen 1 Font 48/Smallcaps Map View 50x35 Zoom Use 0% Tactical HUD 0 Map Filters NONE Filters NONE Steam 1 RUN: aae3a23a-100a-4b3e-88fe-c49a86e71100